[Event "Czech Open Rapid G1 2024"]
[Site "Pardubice"]
[Date "2024.07.17"]
[Round "3.9"]
[White "Bures, Jaroslav"]
[Black "Movsesian, Julia"]
[Result "0-1"]
[Annotator "TA"]
[ECO "C59"]
[WhiteElo "2418"]
[BlackElo "2202"]
[PlyCount "44"]
[EventDate "2024.07.16"]
[EventType "swiss"]
[EventCountry "CZE"]
[SourceTitle "playchess.com"]
[Source "ChessBase"]
[SourceQuality "1"]
[TimeControl "1200+10"]

{[%evp 19,44,0,0,0,0,0,56,-63,-72,-65,-28,-587,-590,-809,-827,-2945,-2897,-29992,-29993,-29993,-29994,-29994,-29994,-29994,-29995,-29995,-607]} 1. e4 {[%emt 0:00:01]} e5 {[%emt 0:00:02]} 2. Nf3 {[%emt 0:00:02]} Nc6 {[%emt 0:00:01]} 3. Bc4 {[%emt 0:00:02]} Nf6 {[%emt 0:00:05]} 4. Ng5 {[%emt 0:00:01]} d5 {[%emt 0:00:02]} 5. exd5 {[%emt 0:00:01]} Na5 {[%emt 0:00:01]} 6. Bb5+ {[%emt 0:00:01]} c6 {[%emt 0:00:01]} 7. dxc6 {[%emt 0:00:01]} bxc6 {[%emt 0:00:01]} 8. Be2 {[%emt 0:00:02]} h6 {[%emt 0:00:07]} 9. Nf3 {[%emt 0:00:01]} e4 {[%emt 0:00:06]} 10. Ne5 {[%emt 0:00:01]} Bc5 {[%emt 0:00:02] aiming for ...Qd4.} 11. O-O {[%emt 0:00:11]} Qd6 {[%emt 0:00:06]} 12. d4 {[%emt 0:00:06]} Bxd4 {[%emt 0:00:49]} (12... Qxd4 $11 13. Qxd4 Bxd4) 13. Ng4 {[%emt 0:06:01]} ({White has to play} 13. Bf4 $14) 13... Bxg4 $15 {[%emt 0:00:35]} 14. Bxg4 {[%emt 0:00:02]} h5 {[%emt 0:00:03] Black has more active pieces.} 15. Bh3 {[%emt 0:03:22][%mdl 8192] [#] Loses the game.} (15. Be2 $11 {and White has nothing to worry.}) 15... Ng4 $1 $19 {[%emt 0:00:02][%mdl 512]} 16. Bxg4 {[%emt 0:04:06]} (16. g3 Nxf2) 16... hxg4 {[%emt 0:00:01][%csl Gh8][%cal Rd6h2]} 17. g3 {[%emt 0:04:53] [#]} Bxf2+ $1 {[%emt 0:00:05][%mdl 512] White is weak on the light squares} 18. Kxf2 {[%emt 0:00:28]} (18. Rxf2 Qxd1+) 18... Rxh2+ {[%emt 0:00:04] Black mates.} 19. Ke3 {[%emt 0:00:03]} Nc4+ {[%emt 0:01:29]} 20. Kxe4 {[%emt 0:00:03] [#]} Re2+ $3 {[%emt 0:03:02][%mdl 512]} 21. Qxe2 {[%emt 0:00:33]} Qe5+ {[%emt 0:00:06]} 22. Kd3 {[%emt 0:00:02]} O-O-O+ {[%emt 0:00:19] Weighted Error Value: White=2.01/Black=0.08 (flawless) .  Loses game:     	White=1     	---        Mistake:       	White=1     	Black=1      Inaccurate:     	White=2     	Black=1      OK:         	White=1     	Black=1      Best:        	---       	Black=1      Brilliant:      	---       	Black=1} 0-1

[Event "Czech Open Rapid G1 2024"]
[Site "Pardubice"]
[Date "2024.07.17"]
[Round "3.10"]
[White "Sherman, Raem"]
[Black "Kusa, Jakub"]
[Result "1/2-1/2"]
[Annotator "TA"]
[ECO "C47"]
[WhiteElo "2358"]
[BlackElo "2423"]
[PlyCount "61"]
[EventDate "2024.07.16"]
[EventType "swiss"]
[EventCountry "CZE"]
[SourceTitle "playchess.com"]
[Source "ChessBase"]
[SourceQuality "1"]
[TimeControl "1200+10"]

{[%evp 18,61,14,23,16,31,33,5,15,13,18,0,-7,-18,-22,-18,-27,-52,-54,-42,-45,-59,-55,-64,-52,-53,-10,-12,0,0,3,7,6,8,7,6,8,3,8,0,0,0,0,-6,-6,-12]} 1. e4 {[%emt 0:00:11]} e5 {[%emt 0:00:02]} 2. Nf3 {[%emt 0:00:07]} Nc6 {[%emt 0:00:02]} 3. d4 {[%emt 0:00:02]} exd4 {[%emt 0:00:02]} 4. Nxd4 {[%emt 0:00:01]} Nf6 {[%emt 0:00:03]} 5. Nxc6 {[%emt 0:00:05]} bxc6 {[%emt 0:00:02]} 6. Nc3 {[%emt 0:00:13]} Bb4 {[%emt 0:00:11]} 7. Bd3 {[%emt 0:00:03]} O-O {[%emt 0:00:09]} 8. O-O {[%emt 0:00:04]} Re8 {[%emt 0:00:04]} 9. Qf3 {[%emt 0:00:10]} h6 {[%emt 0:00:58]} 10. h3 {[%emt 0:00:32]} Bxc3 {[%emt 0:00:25]} 11. bxc3 {[%emt 0:00:01]} d6 {[%emt 0:00:04]} 12. Bf4 {[%emt 0:00:35]} Nd7 {[%emt 0:00:14]} 13. Qg3 {[%emt 0:00:48]} Qf6 {[%emt 0:00:11][%cal Oa8b8]} 14. Be3 {[%emt 0:00:12]} c5 {[%emt 0:00:40]} 15. f4 {[%emt 0:01:30][%cal Oe4e5]} Qxc3 {[%emt 0:00:44]} 16. e5 $1 {[%emt 0:02:31]} dxe5 {[%emt 0:04:46]} 17. fxe5 {[%emt 0:01:07]} Qxe5 {[%emt 0:01:41]} 18. Bf4 {[%emt 0:01:19]} Qd4+ {[%emt 0:00:01]} 19. Kh2 {[%emt 0:00:36]} c4 {[%emt 0:01:05]} 20. Bf5 {[%emt 0:01:58][%cal Oa1d1] [#] Hoping for Rad1!} Nf8 {[%emt 0:00:30]} 21. c3 {[%emt 0:01:15]} Qf6 {[%emt 0:00:38]} 22. Bc2 {[%emt 0:00:34] The position is equal.} Ng6 {[%emt 0:04:33]} 23. Bxc7 {[%emt 0:01:08]} (23. Bxh6 {simplifies} Qe5 24. Bxg6 Qxg3+ 25. Kxg3 fxg6 26. Bf4) 23... Qc6 {[%emt 0:00:13] [#]} 24. Rxf7 $1 {[%emt 0:02:12]} Kxf7 {[%emt 0:00:24]} 25. Rf1+ {[%emt 0:00:04]} Kg8 {[%emt 0:00:14][%cal Bf7g8,Bg8h7,Bh7g6][%mdl 32]} 26. Bxg6 {[%emt 0:00:11]} Bb7 $1 {[%emt 0:04:09] Threatens to win with ...Re2.} 27. Bf7+ {[%emt 0:02:12] A strong pair of Bishops.} Kh7 {[%emt 0:01:13]} 28. Bxe8 {[%emt 0:00:11]} Rxe8 {[%emt 0:00:02]} 29. Rf7 {[%emt 0:00:08]} Qg6 {[%emt 0:00:05]} 30. Qxg6+ {[%emt 0:00:16]} Kxg6 {[%emt 0:00:03]} 31. Rf2 {[%emt 0:00:02] Weighted Error Value: White=0.06 (flawless) /Black=0.04 (flawless) .  Inaccurate:     	White=1     	Black=1      OK:         	White=11    	Black=7      Best:        	White=1     	Black=4      Strong:       	White=1     	Black=1} 1/2-1/2

[Event "Czech Open Rapid G1 2024"]
[Site "Pardubice"]
[Date "2024.07.17"]
[Round "3.11"]
[White "Pulpan, Jakub"]
[Black "Kopriva, Martin"]
[Result "1-0"]
[Annotator "TA"]
[ECO "B06"]
[WhiteElo "2383"]
[BlackElo "2159"]
[PlyCount "39"]
[EventDate "2024.07.16"]
[EventType "swiss"]
[EventCountry "CZE"]
[SourceTitle "playchess.com"]
[Source "ChessBase"]
[SourceQuality "1"]
[TimeControl "1200+10"]

{[%evp 9,38,25,66,33,46,29,36,52,46,10,54,63,117,107,108,21,85,81,61,3,327,319,1264,1191,29983,29984,29988,29989,29997,29998,29999]} 1. Nf3 {[%emt 0:00:02]} g6 {[%emt 0:00:02]} 2. e4 {[%emt 0:01:13]} Bg7 {[%emt 0:00:12]} 3. d4 {[%emt 0:00:10]} d6 {[%emt 0:00:02]} 4. Nc3 {[%emt 0:00:10]} a6 {[%emt 0:00:02]} 5. a4 {[%emt 0:00:08]} b6 {[%emt 0:00:06]} 6. Bg5 {[%emt 0:01:32]} Bb7 {[%emt 0:00:52]} 7. Bc4 {[%emt 0:00:04]} Nf6 {[%emt 0:02:36]} 8. Qe2 {[%emt 0:00:32] Black must now prevent e5. White is slightly better.} h6 {[%emt 0:01:56]} 9. Bh4 {[%emt 0:00:04]} O-O {[%emt 0:01:27]} 10. e5 {[%emt 0:00:32]} dxe5 {[%emt 0:01:33]} ({Better is} 10... d5 $1 $14) 11. dxe5 $16 {[%emt 0:00:01]} Nh5 {[%emt 0:00:45] [#] Threatens to win with ...Nf4.} 12. Rd1 {[%emt 0:00:22]} (12. Qe3 $1 $16) 12... Qe8 {[%emt 0:00:48] [#]} (12... Qc8 $1 $11 13. Nd5 (13. Bxe7 $2 {too greedy.} Nf4 $19) 13... Bxd5 14. Bxd5 (14. Rxd5 b5 $17) 14... Nf4) 13. Qe3 $1 $36 {[%emt 0:00:45][%mdl 2048] Hoping for g4. White has strong initiative.} e6 {[%emt 0:05:12]} 14. g4 {[%emt 0:00:38] White is much more active.} ({White should try} 14. Be2 $1 $14) 14... g5 $2 {[%emt 0:00:15][%mdl 8192] This move loses the game for Black.} (14... Bxf3 $1 $11 {and Black is okay.} 15. Qxf3 Nc6) 15. gxh5 $18 {[%emt 0:00:34]} Bxe5 $2 {[%emt 0:02:45] [#]} (15... Bxf3 16. Qxf3 Nc6) 16. Nxe5 $1 {[%emt 0:00:56][%cal Oh4g5] Bxg5! would kill now.} Bxh1 {[%emt 0:00:25] [#]} (16... f6 17. Rg1) 17. Bxg5 $1 {[%emt 0:00:01][%mdl 512] White mates.} f6 {[%emt 0:00:42]} (17... f5 18. Rd8) 18. Bxh6 {[%emt 0:00:11]} fxe5 {[%emt 0:00:49]} 19. Qg5+ {[%emt 0:00:03]} Kf7 {[%emt 0:00:00]} 20. Qg7# {[%emt 0:00:01] Weighted Error Value: White=0.15 (very precise) /Black=0.73.  Loses game:     	---       	Black=1      Mistake:       	White=2     	Black=3      Inaccurate:     	White=1     	Black=2      OK:         	White=3     	Black=2      Best:        	White=1     	Black=1      Strong:       	White=1     	---} 1-0

[Event "Czech Open Rapid G1 2024"]
[Site "Pardubice"]
[Date "2024.07.17"]
[Round "3.12"]
[White "Johansson, Linus"]
[Black "Fishchuk, Vladyslav"]
[Result "1-0"]
[Annotator "RC"]
[ECO "D32"]
[WhiteElo "2451"]
[BlackElo "2234"]
[PlyCount "185"]
[EventDate "2024.07.16"]
[EventType "swiss"]
[EventCountry "CZE"]
[SourceTitle "playchess.com"]
[Source "ChessBase"]
[SourceQuality "1"]
[TimeControl "1200+10"]

1. d4 {[%emt 0:00:02]} d5 {[%emt 0:00:01]} 2. c4 {[%emt 0:00:01]} e6 {[%emt 0:00:01]} 3. Nc3 {[%emt 0:00:01]} c5 {[%emt 0:00:02]} 4. cxd5 {[%emt 0:00:03]} cxd4 {[%emt 0:00:02]} 5. Qa4+ {[%emt 0:00:01]} Bd7 {[%emt 0:00:01]} 6. Qxd4 {[%emt 0:00:01]} exd5 {[%emt 0:00:01]} 7. Qxd5 {[%emt 0:00:01]} Nf6 {[%emt 0:00:02]} 8. Qd1 {[%emt 0:00:15]} Nc6 {[%emt 0:00:01]} 9. Nf3 {[%emt 0:00:02]} Bc5 {[%emt 0:00:02]} 10. a3 {[%emt 0:00:17]} O-O {[%emt 0:00:15]} 11. Bg5 {[%emt 0:00:02]} Qb6 {[%emt 0:00:54]} 12. e3 {[%emt 0:00:01]} Rfd8 {[%emt 0:00:20]} 13. Bxf6 {[%emt 0:01:01]} gxf6 {[%emt 0:00:06]} 14. Bb5 {[%emt 0:06:59]} Ne5 {[%emt 0:01:40]} 15. Bxd7 {[%emt 0:01:42]} Rxd7 {[%emt 0:00:01]} 16. Nd5 {[%emt 0:00:01]} Qa5+ {[%emt 0:00:02]} 17. b4 {[%emt 0:00:53]} Bxb4+ {[%emt 0:00:15]} 18. axb4 {[%emt 0:00:01]} Qxd5 {[%emt 0:00:07]} 19. Qxd5 {[%emt 0:00:01]} Rxd5 {[%emt 0:00:02]} 20. Nd4 {[%emt 0:00:10]} Nd3+ {[%emt 0:00:37]} 21. Ke2 {[%emt 0:00:02]} Nxb4 {[%emt 0:00:01]} 22. Rhb1 {[%emt 0:00:03]} Nc6 {[%emt 0:00:02]} 23. Nxc6 {[%emt 0:00:31]} bxc6 {[%emt 0:00:01]} 24. Ra6 {[%emt 0:00:01]} Rc5 {[%emt 0:01:27]} 25. Rb7 {[%emt 0:00:15]} Rc2+ {[%emt 0:01:21]} 26. Kf3 {[%emt 0:00:03]} Kg7 {[%emt 0:00:38]} 27. g4 {[%emt 0:00:19]} h6 {[%emt 0:00:56]} 28. Kg3 {[%emt 0:00:41]} Rc3 {[%emt 0:00:07]} 29. Rc7 {[%emt 0:00:09]} Rc2 {[%emt 0:00:28]} 30. h4 {[%emt 0:00:04]} Rc5 {[%emt 0:00:30]} 31. e4 {[%emt 0:00:16]} Rc2 {[%emt 0:00:26]} 32. f3 {[%emt 0:00:04]} Rc3 {[%emt 0:00:13]} 33. Kf4 {[%emt 0:00:40]} Rc5 {[%emt 0:01:03]} 34. h5 {[%emt 0:00:18]} Rc3 {[%emt 0:00:08]} 35. Rd7 {[%emt 0:02:06]} Rc5 {[%emt 0:00:32]} 36. Rb7 {[%emt 0:00:02]} Rb5 {[%emt 0:05:22]} 37. Rc7 {[%emt 0:00:01]} Rb6 {[%emt 0:00:01]} 38. Ra1 {[%emt 0:00:01]} a5 {[%emt 0:00:20]} 39. Rd1 {[%emt 0:00:02]} Rba6 {[%emt 0:00:07]} 40. Rdd7 {[%emt 0:00:04]} Rf8 {[%emt 0:00:03]} 41. Ke3 {[%emt 0:00:43]} a4 {[%emt 0:00:16]} 42. Ra7 {[%emt 0:00:25]} Rxa7 {[%emt 0:00:05]} 43. Rxa7 {[%emt 0:00:01]} Rb8 {[%emt 0:00:20]} 44. Rxa4 {[%emt 0:00:01]} Rb3+ {[%emt 0:00:01]} 45. Kf4 {[%emt 0:00:01]} Rc3 {[%emt 0:00:03]} 46. Ra1 {[%emt 0:00:10]} Kf8 {[%emt 0:00:05]} 47. Ra8+ {[%emt 0:00:58]} Kg7 {[%emt 0:00:02]} 48. Rd8 {[%emt 0:00:24]} Kh7 {[%emt 0:00:15]} 49. Kg3 {[%emt 0:00:07]} Kg7 {[%emt 0:00:03]} 50. Kf2 {[%emt 0:00:01]} Kh7 {[%emt 0:00:46]} 51. Ke2 {[%emt 0:00:02]} Kg7 {[%emt 0:00:01]} 52. Rd6 {[%emt 0:00:09]} Rc2+ {[%emt 0:00:31]} 53. Ke3 {[%emt 0:00:05]} Rc3+ {[%emt 0:00:09]} 54. Ke2 {[%emt 0:00:39]} Rc2+ {[%emt 0:00:10]} 55. Kd3 {[%emt 0:00:05]} Rf2 {[%emt 0:00:25]} 56. Ke3 {[%emt 0:00:01]} Rc2 {[%emt 0:00:02]} 57. Rd8 {[%emt 0:00:14]} Rc3+ {[%emt 0:00:07]} 58. Rd3 {[%emt 0:00:02]} Rc4 {[%emt 0:00:02]} 59. Kd2 {[%emt 0:00:13]} Kf8 {[%emt 0:00:29]} 60. Rc3 {[%emt 0:00:36]} Rd4+ {[%emt 0:00:02]} 61. Ke3 {[%emt 0:00:19]} Rd6 {[%emt 0:00:01]} 62. Rd3 {[%emt 0:00:01]} Re6 {[%emt 0:00:18]} 63. Rd8+ {[%emt 0:00:03]} Kg7 {[%emt 0:00:04]} 64. Kd4 {[%emt 0:00:19]} Re5 {[%emt 0:00:35]} 65. Rd6 {[%emt 0:00:16]} Ra5 {[%emt 0:00:35]} 66. Rxc6 {[%emt 0:00:04]} Ra3 {[%emt 0:00:08]} 67. Rc3 {[%emt 0:00:01]} Ra5 {[%emt 0:00:02]} 68. Ke3 {[%emt 0:00:02]} Rb5 {[%emt 0:00:02]} 69. Kf4 {[%emt 0:00:04]} Rb6 {[%emt 0:00:10]} 70. Rd3 {[%emt 0:00:12]} Ra6 {[%emt 0:00:01]} 71. Kf5 {[%emt 0:00:08]} Rb6 {[%emt 0:00:02]} 72. f4 {[%emt 0:00:32]} Ra6 {[%emt 0:00:19]} 73. Rd7 {[%emt 0:00:32]} Ra1 {[%emt 0:00:23]} 74. Rd6 {[%emt 0:00:09]} Ra5+ {[%emt 0:00:02]} 75. Rd5 {[%emt 0:00:30]} Ra6 {[%emt 0:00:25]} 76. Rd7 {[%emt 0:01:48]} Ra1 {[%emt 0:00:38]} 77. Rd4 {[%emt 0:01:29]} Ra5+ {[%emt 0:00:30]} 78. e5 {[%emt 0:00:05]} fxe5 {[%emt 0:00:03]} 79. fxe5 {[%emt 0:00:01]} Ra1 {[%emt 0:00:14]} 80. g5 {[%emt 0:00:20]} hxg5 {[%emt 0:00:44]} 81. Kxg5 {[%emt 0:00:05]} Rg1+ {[%emt 0:02:36]} 82. Rg4 {[%emt 0:00:02]} Rh1 {[%emt 0:00:04]} 83. Kf5+ {[%emt 0:00:26]} Kh6 {[%emt 0:01:02]} 84. Rf4 {[%emt 0:00:01]} Rxh5+ {[%emt 0:01:00]} 85. Kf6 {[%emt 0:00:06]} Kh7 {[%emt 0:00:05]} 86. Rg4 {[%emt 0:00:12]} Kh6 {[%emt 0:00:19]} 87. Rg1 {[%emt 0:00:18]} Kh7 {[%emt 0:00:33]} 88. Kxf7 {[%emt 0:00:13]} Rf5+ {[%emt 0:00:04]} 89. Ke6 {[%emt 0:00:02]} Rf8 {[%emt 0:00:10]} 90. Ke7 {[%emt 0:00:02]} Ra8 {[%emt 0:00:01]} 91. e6 {[%emt 0:00:02]} Ra7+ {[%emt 0:00:06]} 92. Kf6 {[%emt 0:00:02]} Rf7+ 93. Kxf7 {[%emt 0:00:05]} 1-0

[Event "Czech Open Rapid G1 2024"]
[Site "Pardubice"]
[Date "2024.07.17"]
[Round "3.13"]
[White "Bouska, Jiri"]
[Black "Lalic, Bogdan"]
[Result "1/2-1/2"]
[Annotator "RC"]
[ECO "B06"]
[WhiteElo "2222"]
[BlackElo "2348"]
[PlyCount "115"]
[EventDate "2024.07.16"]
[EventType "swiss"]
[EventCountry "CZE"]
[SourceTitle "playchess.com"]
[Source "ChessBase"]
[SourceQuality "1"]
[TimeControl "1200+10"]

1. e4 {[%emt 0:00:04]} g6 {[%emt 0:00:04]} 2. d4 {[%emt 0:00:03]} Bg7 {[%emt 0:00:04]} 3. Nc3 {[%emt 0:00:01]} d5 {[%emt 0:00:06]} 4. exd5 {[%emt 0:00:48]} Nf6 {[%emt 0:00:06]} 5. Nf3 {[%emt 0:00:32]} Nxd5 {[%emt 0:00:14]} 6. Nxd5 {[%emt 0:00:07]} Qxd5 {[%emt 0:00:02]} 7. c4 {[%emt 0:00:51]} Qd6 {[%emt 0:00:15]} 8. Be2 {[%emt 0:00:45]} O-O {[%emt 0:00:10]} 9. O-O {[%emt 0:00:06]} c5 {[%emt 0:00:13]} 10. Be3 {[%emt 0:02:19]} cxd4 {[%emt 0:00:48]} 11. Bxd4 {[%emt 0:00:19]} e5 {[%emt 0:00:34]} 12. Bc3 {[%emt 0:01:22]} Qc7 {[%emt 0:00:06]} 13. Qd2 {[%emt 0:02:58]} Nc6 {[%emt 0:00:14]} 14. Rad1 {[%emt 0:00:30]} Bg4 {[%emt 0:01:39]} 15. h3 {[%emt 0:00:47]} Rad8 {[%emt 0:00:07]} 16. Qc1 {[%emt 0:00:16]} Bf5 {[%emt 0:00:42]} 17. Rxd8 {[%emt 0:01:56]} Rxd8 {[%emt 0:00:06]} 18. Rd1 {[%emt 0:00:17]} e4 {[%emt 0:01:49]} 19. Ne1 {[%emt 0:00:43]} Nd4 {[%emt 0:00:16]} 20. Bxd4 {[%emt 0:00:11]} Bxd4 {[%emt 0:00:11]} 21. Nc2 {[%emt 0:00:11]} Be5 {[%emt 0:00:32]} 22. Ne3 {[%emt 0:00:29]} Be6 {[%emt 0:00:06]} 23. b3 {[%emt 0:00:49]} f5 {[%emt 0:00:17]} 24. Nd5 {[%emt 0:00:23]} Bxd5 {[%emt 0:01:40]} 25. cxd5 {[%emt 0:00:04]} Qxc1 {[%emt 0:00:34]} 26. Rxc1 {[%emt 0:00:02]} Kf8 {[%emt 0:00:12]} 27. Bc4 {[%emt 0:00:55]} Rc8 {[%emt 0:00:17]} 28. Rd1 {[%emt 0:00:10]} Ke7 {[%emt 0:00:06]} 29. Kf1 {[%emt 0:02:18]} Kd6 {[%emt 0:00:09]} 30. a4 {[%emt 0:01:13]} Rc5 {[%emt 0:00:06]} 31. Rc1 {[%emt 0:00:37]} a6 {[%emt 0:00:06]} 32. b4 {[%emt 0:00:08]} Rc7 {[%emt 0:00:20]} 33. b5 {[%emt 0:00:26]} axb5 {[%emt 0:00:05]} 34. axb5 {[%emt 0:00:00]} b6 {[%emt 0:00:14]} 35. Ke2 {[%emt 0:00:15]} Bd4 {[%emt 0:00:14]} 36. f3 {[%emt 0:01:04]} Ra7 {[%emt 0:01:27]} 37. fxe4 {[%emt 0:00:15]} fxe4 {[%emt 0:00:01]} 38. Bb3 {[%emt 0:00:40]} Bc5 {[%emt 0:00:11]} 39. Rc4 {[%emt 0:00:23]} Ra3 {[%emt 0:00:07]} 40. Bc2 {[%emt 0:00:14]} Ra2 {[%emt 0:00:17]} 41. Kd1 {[%emt 0:00:39]} Kxd5 {[%emt 0:02:51]} 42. Ra4 {[%emt 0:00:18]} Rxa4 {[%emt 0:00:02]} 43. Bxa4 {[%emt 0:00:02]} Kc4 {[%emt 0:00:01]} 44. Ke2 {[%emt 0:00:12]} e3 {[%emt 0:00:17]} 45. g4 {[%emt 0:00:35]} Kb4 {[%emt 0:00:01]} 46. Bc2 {[%emt 0:00:03]} Kxb5 {[%emt 0:00:03]} 47. g5 {[%emt 0:00:11]} Kb4 {[%emt 0:00:30]} 48. h4 {[%emt 0:00:11]} b5 {[%emt 0:00:05]} 49. h5 {[%emt 0:00:10]} gxh5 {[%emt 0:00:01]} 50. Bxh7 {[%emt 0:00:02]} Kc3 {[%emt 0:00:44]} 51. g6 {[%emt 0:00:08]} Bd4 {[%emt 0:00:01]} 52. g7 {[%emt 0:00:01]} Bxg7 {[%emt 0:00:01]} 53. Kxe3 {[%emt 0:00:01]} b4 {[%emt 0:00:03]} 54. Bg8 {[%emt 0:00:03]} b3 {[%emt 0:00:03]} 55. Bxb3 {[%emt 0:00:03]} Kxb3 {[%emt 0:00:01]} 56. Kf3 {[%emt 0:00:00]} h4 {[%emt 0:00:01]} 57. Kg2 {[%emt 0:00:01]} Bf6 {[%emt 0:00:01]} 58. Kh1 {[%emt 0:00:02]} 1/2-1/2

[Event "Czech Open Rapid G1 2024"]
[Site "Pardubice"]
[Date "2024.07.17"]
[Round "3.14"]
[White "Rasik, Vitezslav"]
[Black "Alexikov, Alexander"]
[Result "1/2-1/2"]
[Annotator "TA"]
[ECO "B51"]
[WhiteElo "2415"]
[BlackElo "2183"]
[PlyCount "78"]
[EventDate "2024.07.16"]
[EventType "swiss"]
[EventCountry "CZE"]
[SourceTitle "playchess.com"]
[Source "ChessBase"]
[SourceQuality "1"]
[TimeControl "1200+10"]

{[%evp 17,78,22,29,-38,-2,-14,15,-10,1,-56,-58,-58,-57,-59,-73,-76,-79,-80,-75,-89,-81,-116,-88,-89,-71,-82,-84,-84,-89,-90,-98,-84,-24,-52,0,0,0,0,35,38,20,23,25,26,26,14,16,7,72,0,0,0,100,0,0,0,0,0,0,0,0,0,0]} 1. e4 {[%emt 0:00:15]} c5 {[%emt 0:00:03]} 2. Nf3 {[%emt 0:00:06]} d6 {[%emt 0:00:01]} 3. Bb5+ {[%emt 0:00:12]} Nd7 {[%emt 0:00:04]} 4. c3 {[%emt 0:00:38]} Ngf6 {[%emt 0:00:06]} 5. Qe2 {[%emt 0:00:06]} a6 {[%emt 0:00:07]} 6. Ba4 {[%emt 0:00:04]} e5 {[%emt 0:00:20]} 7. O-O {[%emt 0:00:29]} Be7 {[%emt 0:00:04]} 8. d4 {[%emt 0:00:14]} b5 {[%emt 0:00:11]} 9. Bc2 {[%emt 0:00:21]} O-O {[%emt 0:00:52]} 10. Nbd2 {[%emt 0:00:18]} ({White should try} 10. d5 $11) 10... Qc7 {[%emt 0:00:28] White must now prevent ...cxd4.} 11. Bb1 {[%emt 0:00:41]} a5 {[%emt 0:01:51]} 12. Re1 {[%emt 0:00:41]} Ba6 {[%emt 0:00:25]} 13. d5 {[%emt 0:03:01]} (13. dxe5 $11 dxe5 (13... Nxe5 14. Nxe5 dxe5 15. c4 $11) 14. c4) 13... c4 $1 $15 {[%emt 0:00:23]} 14. Nf1 {[%emt 0:00:42]} Nc5 {[%emt 0:00:24]} 15. Ng3 {[%emt 0:00:24]} g6 {[%emt 0:00:02] Wards off Nf5} 16. h3 {[%emt 0:01:07]} b4 {[%emt 0:00:26]} 17. Rd1 {[%emt 0:03:34]} Rfb8 {[%emt 0:03:28]} 18. Ne1 {[%emt 0:00:11]} Rb7 {[%emt 0:00:02]} 19. Kh2 {[%emt 0:00:34]} Rab8 {[%emt 0:00:01] [#] aiming for ...bxc3.} 20. Bc2 {[%emt 0:00:23]} a4 {[%emt 0:00:27][%cal Oa4a3] Threatens to win with ...a3!} 21. Qf3 {[%emt 0:02:54]} b3 {[%emt 0:00:53]} 22. axb3 {[%emt 0:00:37]} axb3 {[%emt 0:00:18]} 23. Bb1 {[%emt 0:00:05]} Bb5 {[%emt 0:00:04]} 24. Bh6 {[%emt 0:00:34]} Ne8 {[%emt 0:00:18]} ({Black should play} 24... Na4 $17 25. Qe2 Bf8) 25. Qe2 {[%emt 0:00:35]} Ng7 {[%emt 0:00:41]} (25... Ra7 $15 26. Rxa7 Qxa7) 26. f4 $11 {[%emt 0:00:58]} f6 {[%emt 0:00:49]} 27. Nf3 {[%emt 0:00:04]} Qd8 {[%emt 0:00:57]} 28. f5 {[%emt 0:00:48]} Ra8 {[%emt 0:01:02]} 29. Rxa8 {[%emt 0:00:05]} Qxa8 {[%emt 0:00:01]} 30. fxg6 {[%emt 0:00:13]} hxg6 {[%emt 0:00:01]} 31. Nh4 {[%emt 0:00:31]} Qe8 {[%emt 0:00:03][%cal Of6f5]} 32. Rf1 {[%emt 0:00:51]} Kh7 {[%emt 0:00:26]} (32... f5 $11 33. Nhxf5 gxf5 34. Nxf5 (34. Bxg7 Kxg7 35. exf5 Bf6 $17) 34... Nxf5 35. Qg4+ (35. exf5 Bf6 $11) 35... Kh8 (35... Kh7 36. exf5 Bf6 37. Bg5 $11) 36. exf5 (36. Rxf5 $2 Qg8 $19) 36... Bf6) 33. Bxg7 {[%emt 0:00:57]} (33. Bd2 $16) 33... Kxg7 {[%emt 0:00:01]} 34. Qg4 {[%emt 0:00:18] [#] Nh5+ is the strong threat.} Bd7 {[%emt 0:02:31]} (34... Kh7 $11 {remains equal.}) 35. Nhf5+ {[%emt 0:00:05]} (35. Ngf5+ $16 Bxf5 (35... Kh7 $2 36. Nxg6 Bxf5 37. exf5 $18) 36. exf5 (36. Nxf5+ Kf7 $16)) 35... Kf8 {[%emt 0:01:42] The position is equal.} 36. Qh4 $1 {[%emt 0:00:05] Threatening mate with Qh6+.} gxf5 {[%emt 0:00:03]} 37. Qh8+ {[%emt 0:01:00]} Kf7 {[%emt 0:00:01]} 38. Qh7+ {[%emt 0:00:02]} Kf8 {[%emt 0:00:01] Strongly threatening ...Qf7.} 39. Qh8+ {[%emt 0:00:56]} Kf7 {[%emt 0:00:00] Weighted Error Value: White=0.22 (precise) /Black=0.24 (precise) .  Mistake:       	White=3     	Black=4      Inaccurate:     	White=2     	Black=3      OK:         	White=9     	Black=10     Best:        	White=3     	Black=1      Strong:       	White=1     	Black=1} 1/2-1/2